fUST/lending_fUST_20250408
["ID","MTS","AMOUNT","RATE_DAILY","PERIOD"]
[357401546,1744044645411,-556.42739181,0.00027397,7]
[357401548,1744044645421,-500.0,0.00027397,7]
[357401550,1744044645432,-1790.23,0.00027397,7]
[357401552,1744044645442,-822.87,0.00027397,7]
[357401554,1744044645452,-2477.67,0.00027397,7]
[357401556,1744044645462,-500.0,0.00027397,7]
[357401558,1744044645473,-500.0,0.00027397,7]
[357401560,1744044645483,-1003.07,0.00027397,7]
[357401562,1744044645492,-665.07,0.00027397,7]
[357401564,1744044645503,-500.0,0.00027397,7]
[357401566,1744044645513,-558.60480821,0.00027397,7]
[357401567,1744044645523,-500.0,0.00027397,7]
[357401568,1744044645533,-1679.57,0.00027397,7]
[357401569,1744044645544,-3234.82,0.00027397,2]
[357401570,1744044645553,-500.0,0.00027397,7]
[357401571,1744044645563,-511.51,0.00027397,7]
[357401572,1744044645574,-500.0,0.00027397,7]
[357401573,1744044645584,-507.98,0.00027397,7]
[357401574,1744044645594,-500.0,0.00027397,7]
[357401575,1744044645603,-500.0,0.00027397,7]
[357401576,1744044645613,-3088.4,0.00027397,7]
[357401577,1744044645625,-621.99459629,0.00027397,7]
[357401578,1744044645639,-976.77,0.00027397,7]
[357401579,1744044645649,-500.0,0.00027397,7]
[357401580,1744044645659,-500.0,0.00027397,7]
[357401581,1744044645670,-3169.0,0.00027397,7]
[357401583,1744044645680,-500.0,0.00027397,7]
[357401585,1744044645690,-1540.29,0.00027397,7]
[357401587,1744044645700,-2640.64,0.00027397,7]
[357401589,1744044645711,-500.0,0.00027397,7]
[357401591,1744044645722,-500.0,0.00027397,7]
[357401593,1744044645732,-500.0,0.00027397,7]
[357401595,1744044645741,-500.0,0.00027397,7]
[357401597,1744044645751,-356.17973015,0.00027397,7]
[357401599,1744044645761,-500.0,0.00027397,7]
[357401601,1744044645771,-500.0,0.00027397,7]
[357401603,1744044645781,-500.0,0.00027397,7]
[357401605,1744044645792,-500.0,0.00027397,7]
[357401607,1744044645801,-500.0,0.00027397,7]
[357401609,1744044645811,-547.77,0.00027397,7]
[357401611,1744044645820,-500.0,0.00027397,7]
[357401613,1744044645830,-500.0,0.00027397,7]
[357401615,1744044645839,-500.0,0.00027397,7]
[357401617,1744044645849,-500.0,0.00027397,7]
[357401619,1744044645859,-500.0,0.00027397,5]
[357401621,1744044645868,-277.456568,0.00027669,7]
[357401624,1744044645880,-277.456568,0.00027669,7]
[357401625,1744044645890,-151.0,0.00027669,7]
[357401629,1744044645901,-321.439621,0.0002767,7]
[357401632,1744044645911,-151.0,0.0002767,7]
[357401635,1744044645921,-151.0,0.0002767,7]
[357401638,1744044645931,-151.0,0.0002767,7]
[357401640,1744044645941,-151.0,0.0002767,7]
[357401642,1744044645951,-151.0,0.0002767,7]
[357401644,1744044645961,-614.913246,0.0002767,2]
[357401646,1744044645970,-614.913246,0.0002767,2]
[357401648,1744044645981,-277.456568,0.0002767,7]
[357401650,1744044645991,-277.456568,0.0002767,7]
[357401652,1744044646000,-151.0,0.0002767,7]
[357401654,1744044646011,-500.0,0.00027671,7]
[357401656,1744044646020,-500.0,0.00027671,7]
[357401658,1744044646030,-321.439621,0.00027671,7]
[357401660,1744044646040,-321.439621,0.00027671,7]
[357401662,1744044646050,-321.439621,0.00027671,7]
[357401664,1744044646060,-321.439621,0.00027671,7]
[357401666,1744044646069,-321.439621,0.00027671,7]
[357401669,1744044646079,-321.439621,0.00027671,7]
[357401671,1744044646088,-419.36665037,0.00027671,7]
[357401673,1744044646098,-569.17992031,0.00027671,7]
[357401675,1744044646107,-151.0,0.00027671,7]
[357401676,1744044646116,-151.0,0.00027671,7]
[357401679,1744044646129,-151.0,0.00027671,7]
[357401681,1744044646139,-500.0,0.00027671,7]
[357401683,1744044646148,-151.0,0.00027671,7]
[357401685,1744044646158,-151.0,0.00027671,7]
[357401687,1744044646168,-151.0,0.00027671,7]
[357401688,1744044646178,-500.0,0.00027671,7]
[357401691,1744044646188,-500.0,0.00027671,7]
[357401693,1744044646199,-500.0,0.00027671,7]
[357401695,1744044646209,-151.0,0.00027671,7]
[357401696,1744044646218,-500.0,0.00027671,7]
[357401697,1744044646229,-501.09953947,0.00027671,7]
[357401699,1744044646239,-210.38600346,0.00027671,7]
[357401700,1744044646248,-151.0,0.00027671,7]
[357401702,1744044646258,-151.0,0.00027671,7]
[357401704,1744044646268,-151.0,0.00027671,7]
[357401705,1744044646277,-212.397565,0.00027671,7]
[357401707,1744044646287,-500.0,0.00027671,7]
[357401708,1744044646297,-614.913246,0.00027671,2]
[357401710,1744044646307,-614.913246,0.00027671,2]
[357401712,1744044646316,-614.913246,0.00027671,2]
[357401713,1744044646326,-614.913246,0.00027671,2]
[357401714,1744044646336,-614.913246,0.00027671,2]
[357401715,1744044646346,-614.913246,0.00027671,2]
[357401716,1744044646356,-500.0,0.00027671,7]
[357401717,1744044646367,-277.456568,0.00027671,7]
[357401718,1744044646379,-277.456568,0.00027671,7]
[357401719,1744044646390,-277.456568,0.00027671,7]
[357401720,1744044646400,-277.456568,0.00027671,7]
[357401721,1744044646414,-277.456568,0.00027671,7]
[357401722,1744044646425,-277.456568,0.00027671,7]
[357401723,1744044646436,-500.0,0.00027671,7]
[357401724,1744044646446,-151.0,0.00027671,7]
[357401726,1744044646457,-151.0,0.00027671,7]
[357401728,1744044646468,-500.0,0.00027671,7]
[357401730,1744044646479,-902.42,0.00027671,7]
[357401732,1744044646489,-626.69183956,0.00027671,7]
[357401733,1744044646499,-503.78716901,0.00027671,7]
[357401734,1744044646509,-500.0,0.00027671,7]
[357401735,1744044646519,-500.0,0.00027671,7]
[357401736,1744044646529,-500.0,0.00027671,7]
[357401737,1744044646539,-500.0,0.00027671,7]
[357401738,1744044646549,-500.0,0.00027671,7]
[357401739,1744044646559,-500.0,0.00027671,7]
[357401740,1744044646569,-510.13470058,0.00027671,7]
[357401741,1744044646580,-500.0,0.00027671,7]
[357401742,1744044646591,-500.0,0.00027671,7]
[357401743,1744044646601,-500.0,0.00027671,7]
[357401744,1744044646611,-500.0,0.00027671,7]
[357401745,1744044646621,-500.0,0.00027671,7]
[357401746,1744044646636,-959.94,0.00027671,7]
[357401747,1744044646648,-500.0,0.00027671,7]
[357401748,1744044646658,-500.0,0.00027671,7]
[357401749,1744044646669,-500.0,0.00027671,7]
[357401750,1744044646679,-500.0,0.00027671,7]
[357401751,1744044646690,-435.47421213,0.00027671,7]
[357401752,1744044646700,-594.30878487,0.00027671,7]
[357401753,1744044646712,-500.0,0.00027671,7]
[357401754,1744044646723,-500.0,0.00027671,7]
[357401755,1744044646734,-500.0,0.00027671,7]
[357401756,1744044646744,-500.0,0.00027671,7]
[357401757,1744044646754,-500.0,0.00027671,7]
[357401758,1744044646764,-500.0,0.00027671,7]
[357401759,1744044646773,-500.0,0.00027671,7]
[357401760,1744044646783,-500.0,0.00027671,7]
[357401761,1744044646793,-500.0,0.00027671,7]
[357401762,1744044646804,-500.0,0.00027671,7]
[357401763,1744044646813,-500.0,0.00027671,7]
[357401764,1744044646823,-500.0,0.00027671,7]
[357401765,1744044646833,-500.0,0.00027671,7]
[357401766,1744044646843,-500.0,0.00027671,7]
[357401767,1744044646853,-500.0,0.00027671,7]
[357401768,1744044646864,-500.0,0.00027671,7]
[357401769,1744044646874,-500.0,0.00027671,7]
[357401770,1744044646885,-524.76122463,0.00027671,7]
[357401771,1744044646895,-263.74644187,0.00027671,7]
[357401772,1744044646905,-500.0,0.00027671,7]
[357401773,1744044646915,-500.0,0.00027671,7]
[357401774,1744044646925,-500.0,0.00027671,7]
[357401775,1744044646935,-500.0,0.00027671,7]
[357401776,1744044646945,-500.0,0.00027671,7]
[357401777,1744044646955,-500.0,0.00027671,7]
[357401778,1744044646965,-500.0,0.00027671,7]
[357401779,1744044646975,-532.96210592,0.00027671,7]
[357401780,1744044646985,-500.0,0.00027671,7]
[357401781,1744044646995,-500.0,0.00027671,7]
[357401782,1744044647005,-500.0,0.00027671,7]
[357401783,1744044647015,-500.0,0.00027671,7]
[357401784,1744044647025,-500.0,0.00027671,7]
[357401785,1744044647036,-562.86,0.00027671,7]
[357401786,1744044647046,-500.0,0.00027671,7]
[357401787,1744044647056,-500.0,0.00027671,7]
[357401788,1744044647065,-500.0,0.00027671,7]
[357401789,1744044647075,-500.0,0.00027671,7]
[357401790,1744044647086,-500.0,0.00027671,7]
[357401791,1744044647095,-500.0,0.00027671,7]
[357401792,1744044647106,-500.0,0.00027671,7]
[357401793,1744044647116,-500.0,0.00027671,7]
[357401794,1744044647126,-500.0,0.00027671,7]
[357401795,1744044647136,-451.16564559,0.00027671,7]
[357401796,1744044647146,-500.0,0.00027671,7]
[357401797,1744044647157,-500.0,0.00027671,7]
[357401798,1744044647167,-375.55186713,0.00027671,7]
[357401799,1744044647177,-500.0,0.00027671,7]
[357401800,1744044647187,-500.0,0.00027671,7]
[357401801,1744044647198,-500.0,0.00027671,7]
[357401802,1744044647207,-500.0,0.00027671,7]
[357401803,1744044647219,-500.0,0.00027671,7]
[357401804,1744044647230,-500.0,0.00027671,7]
[357401805,1744044647240,-737.32,0.00027671,7]
[357401806,1744044647250,-500.0,0.00027671,7]
[357401808,1744044647260,-500.0,0.00027671,7]
[357401810,1744044647270,-500.0,0.00027671,7]
[357401812,1744044647280,-646.39,0.00027671,7]
[357401813,1744044647290,-546.17088401,0.00027671,7]
[357401814,1744044647299,-500.0,0.00027671,7]
[357401815,1744044647310,-500.0,0.00027671,7]
[357401816,1744044647320,-500.0,0.00027671,7]
[357401817,1744044647330,-500.0,0.00027671,7]
[357401818,1744044647340,-575.96,0.00027671,7]
[357401819,1744044647350,-508.41897172,0.00027671,7]
[357401820,1744044647359,-500.0,0.00027671,7]
[357401821,1744044647370,-500.0,0.00027671,7]
[357401822,1744044647381,-500.0,0.00027671,7]
[357401823,1744044647392,-394.37335928,0.00027671,7]
[357401824,1744044647402,-500.0,0.00027671,7]
[357401825,1744044647412,-500.0,0.00027671,7]
[357401826,1744044647421,-500.0,0.00027671,7]
[357401827,1744044647432,-500.0,0.00027671,7]
[357401828,1744044647442,-500.0,0.00027671,7]
[357401829,1744044647452,-500.0,0.00027671,7]
[357401830,1744044647461,-500.0,0.00027671,7]
[357401831,1744044647472,-504.68,0.00027671,7]
[357401832,1744044647482,-500.0,0.00027671,7]
[357401833,1744044647492,-500.0,0.00027671,7]
[357401834,1744044647502,-500.0,0.00027671,7]
[357401835,1744044647512,-500.0,0.00027671,7]
[357401836,1744044647523,-500.0,0.00027671,7]
[357401837,1744044647534,-987.94,0.00027671,7]
[357401838,1744044647544,-458.29105004,0.00027671,7]
[357401839,1744044647553,-711.04,0.00027671,7]
[357401840,1744044647563,-500.0,0.00027671,7]
[357401841,1744044647574,-500.0,0.00027671,7]
[357401842,1744044647584,-500.0,0.00027671,7]
[357401843,1744044647594,-571.82,0.00027671,7]
[357401844,1744044647604,-500.0,0.00027671,7]
[357401845,1744044647615,-500.0,0.00027671,7]
[357401846,1744044647628,-351.16900102,0.00027671,7]
[357401847,1744044647640,-500.0,0.00027671,7]
[357401848,1744044647651,-500.0,0.00027671,7]
[357401849,1744044647661,-536.86,0.00027671,7]
[357401850,1744044647673,-500.0,0.00027671,7]
[357401851,1744044647684,-500.0,0.00027671,7]
[357401852,1744044647695,-661.36,0.00027671,7]
[357401853,1744044647706,-806.25,0.00027671,7]
[357401854,1744044647730,-521.98,0.00027671,7]
[357401855,1744044647743,-500.0,0.00027671,7]
[357401856,1744044647755,-1644.55,0.00027671,7]
[357401857,1744044647991,-500.0,0.00027671,7]
[357401858,1744044648001,-500.0,0.00027671,7]
[357401859,1744044648011,-500.0,0.00027671,7]
[357401860,1744044648021,-511.64261207,0.00027671,7]
[357401861,1744044648031,-500.0,0.00027671,7]
[357401862,1744044648040,-539.67,0.00027671,7]
[357401863,1744044648049,-512.38,0.00027671,7]
[357401864,1744044648059,-2264.06,0.00027671,7]
[357401865,1744044648069,-624.60657616,0.00027671,7]
[357401866,1744044648079,-998.69,0.00027671,7]
[357401867,1744044648088,-500.0,0.00027671,7]
[357401868,1744044648097,-520.01376323,0.00027671,7]
[357401869,1744044648107,-500.0,0.00027671,7]
[357401870,1744044648117,-500.0,0.00027671,7]
[357401871,1744044648127,-500.0,0.00027671,7]
[357401872,1744044648137,-1059.26,0.00027671,7]
[357401873,1744044648147,-500.0,0.00027671,7]
[357401874,1744044648157,-500.0,0.00027671,7]
[357401875,1744044648166,-500.0,0.00027671,7]
[357401876,1744044648176,-500.0,0.00027671,7]
[357401877,1744044648185,-500.0,0.00027671,7]
[357401878,1744044648195,-1028.96,0.00027671,7]
[357401879,1744044648204,-703.33,0.00027671,7]
[357401880,1744044648215,-500.0,0.00027671,7]
[357401881,1744044648225,-615.89623458,0.00027671,7]
[357401882,1744044648235,-526.46,0.00027671,7]
[357401883,1744044648244,-781.97,0.00027671,7]
[357401884,1744044648254,-778.5,0.00027671,7]
[357401885,1744044648263,-500.0,0.00027671,7]
[357401886,1744044648273,-500.0,0.00027671,7]
[357401887,1744044648283,-426.16566115,0.00027671,7]
[357401888,1744044648293,-500.0,0.00027671,7]
[357401889,1744044648303,-500.0,0.00027671,7]
[357401890,1744044648317,-500.0,0.00027671,7]
[357401891,1744044648327,-500.0,0.00027671,7]
[357401892,1744044648337,-590.1571824,0.00027671,7]
[357401893,1744044648347,-1207.24,0.00027671,7]
[357401894,1744044648357,-500.0,0.00027671,7]
[357401895,1744044648367,-714.57,0.00027671,7]
[357401896,1744044648377,-500.0,0.00027671,7]
[357401897,1744044648387,-500.0,0.00027671,7]
[357401898,1744044648398,-500.0,0.00027671,7]
[357401899,1744044648408,-392.98573405,0.00027671,7]
[357401900,1744044648418,-500.0,0.00027671,7]
[357401901,1744044648428,-500.0,0.00027671,7]
[357401902,1744044648438,-500.0,0.00027671,7]
[357401903,1744044648448,-539.89,0.00027671,7]
[357401904,1744044648459,-500.0,0.00027671,7]
[357401905,1744044648469,-500.0,0.00027671,7]
[357401906,1744044648478,-567.41,0.00027671,7]
[357401907,1744044648488,-500.0,0.00027671,7]
[357401908,1744044648498,-578.53,0.00027671,7]
[357401909,1744044648508,-500.0,0.00027671,7]
[357401910,1744044648517,-500.0,0.00027671,7]
[357401911,1744044648527,-500.0,0.00027671,7]
[357401912,1744044648537,-544.74,0.00027671,7]
[357401913,1744044648546,-500.0,0.00027671,7]
[357401914,1744044648556,-500.0,0.00027671,7]
[357401915,1744044648566,-500.0,0.00027671,7]
[357401916,1744044648576,-512.73300551,0.00027671,7]
[357401917,1744044648586,-761.52,0.00027671,7]
[357401919,1744044648596,-500.0,0.00027671,7]
[357401921,1744044648606,-500.0,0.00027671,7]
[357401922,1744044648615,-500.0,0.00027671,7]
[357401923,1744044648626,-847.22,0.00027671,7]
[357401924,1744044648637,-510.06215902,0.00027671,7]
[357401925,1744044648647,-500.0,0.00027671,7]
[357401926,1744044648657,-500.0,0.00027671,7]
[357401927,1744044648667,-173.03071364,0.00027671,7]
[357401928,1744044648677,-1093.63,0.00027671,7]
[357401929,1744044648687,-815.42,0.00027671,7]
[357401930,1744044648697,-500.0,0.00027671,7]
[357401931,1744044648709,-500.0,0.00027671,7]
[357401932,1744044648718,-500.0,0.00027671,7]
[357401933,1744044648728,-500.0,0.00027671,7]
[357401934,1744044648738,-500.0,0.00027671,7]
[357401935,1744044648748,-1619.2,0.00027671,7]
[357401936,1744044648757,-500.0,0.00027671,7]
[357401937,1744044648767,-500.0,0.00027671,7]
[357401938,1744044648777,-507.9,0.00027671,7]
[357401939,1744044648786,-502.81,0.00027671,7]
[357401940,1744044648796,-500.0,0.00027671,7]
[357401941,1744044648805,-500.0,0.00027671,7]
[357401942,1744044648815,-500.0,0.00027671,7]
[357401943,1744044648826,-500.0,0.00027671,7]
[357401944,1744044648836,-500.0,0.00027671,7]
[357401945,1744044648845,-1000.0,0.00027671,7]
[357401946,1744044648855,-1316.33,0.00027671,7]
[357401947,1744044648866,-1655.22,0.00027671,7]
[357401948,1744044648878,-500.0,0.00027671,7]
[357401949,1744044648888,-820.23,0.00027671,7]
[357401950,1744044648898,-500.0,0.00027671,7]
[357401951,1744044648907,-500.0,0.00027671,7]
[357401952,1744044648918,-1223.76,0.00027671,7]
[357401953,1744044648929,-500.0,0.00027671,7]
[357401954,1744044648940,-500.0,0.00027671,7]
[357401955,1744044648950,-500.0,0.00027671,7]
[357401956,1744044648960,-500.0,0.00027671,7]
[357401957,1744044648970,-504.95139148,0.00027671,7]
[357401958,1744044648980,-500.0,0.00027671,7]
[357401959,1744044648990,-500.0,0.00027671,7]
[357401960,1744044649000,-151.0,0.00027671,3]
[357401961,1744044649010,-195.78130015,0.00027671,7]
[357401962,1744044649020,-939.04,0.00027671,7]
[357401963,1744044649029,-564.95072881,0.00027671,7]
[357401964,1744044649039,-500.0,0.00027671,7]
[357401965,1744044649048,-500.0,0.00027671,7]
[357401966,1744044649058,-500.0,0.00027671,7]
[357401967,1744044649069,-500.0,0.00027671,7]
[357401969,1744044649078,-500.0,0.00027671,7]
[357401971,1744044649088,-500.0,0.00027671,7]
[357401973,1744044649097,-561.15,0.00027671,7]
[357401974,1744044649106,-715.47,0.00027671,7]
[357401975,1744044649116,-500.0,0.00027671,7]
[357401976,1744044649125,-583.3481072,0.00027671,7]
[357401977,1744044649136,-500.0,0.00027671,7]
[357401978,1744044649145,-500.0,0.00027671,7]
[357401979,1744044649155,-1722.91,0.00027671,7]
[357401980,1744044649166,-708.02,0.00027671,7]
[357401981,1744044649176,-202.908798,0.00027671,7]
[357401983,1744044649186,-940.12,0.00027671,7]
[357401985,1744044649196,-500.0,0.00027671,7]
[357401987,1744044649206,-500.0,0.00027671,7]
[357401988,1744044649216,-565.79,0.00027671,7]
[357401989,1744044649226,-202.908798,0.00027671,7]
[357401990,1744044649241,-370.60689446,0.00027671,7]
[357401991,1744044649251,-500.61,0.00027671,7]
[357401992,1744044649261,-780.28,0.00027671,7]
[357401993,1744044649270,-500.0,0.00027671,7]
[357401994,1744044649280,-500.0,0.00027671,7]
[357401995,1744044649290,-534.91101437,0.00027671,7]
[357401996,1744044649299,-2848.17,0.00027671,7]
[357401997,1744044649309,-328.29207539,0.00027671,7]
[357401998,1744044649319,-2186.08,0.00027671,7]
[357401999,1744044649329,-500.0,0.00027671,7]
[357402000,1744044649340,-500.0,0.00027671,7]
[357402001,1744044649351,-500.0,0.00027671,7]
[357402002,1744044649361,-12064.13,0.00027671,7]
[357402003,1744044649372,-563.6,0.00027671,7]
[357402004,1744044649382,-2387.84,0.00027671,7]
[357402005,1744044649392,-500.0,0.00027671,7]
[357402007,1744044649402,-500.0,0.00027671,7]
[357402008,1744044649412,-500.0,0.00027671,7]
[357402009,1744044649421,-151.0,0.00027671,7]
[357402010,1744044649431,-500.0,0.00027671,7]
[357402011,1744044649440,-647.55,0.00027671,7]
[357402012,1744044649450,-151.0,0.00027671,7]
[357402013,1744044649460,-500.0,0.00027671,7]
[357402014,1744044649469,-500.0,0.00027671,7]
[357402015,1744044649479,-500.0,0.00027671,7]
[357402016,1744044649488,-500.0,0.00027671,7]
[357402017,1744044649498,-2953.65,0.00027671,7]
[357402018,1744044649507,-500.0,0.00027671,7]
[357402019,1744044649517,-500.0,0.00027671,7]
[357402020,1744044649526,-844.27,0.00027671,7]
[357402021,1744044649536,-500.0,0.00027671,7]
[357402022,1744044649545,-500.0,0.00027671,7]
[357402023,1744044649555,-500.0,0.00027671,7]
[357402024,1744044649565,-804.31,0.00027671,7]
[357402025,1744044649574,-555.03,0.00027671,7]
[357402026,1744044649584,-500.0,0.00027671,7]
[357402027,1744044649593,-1542.59,0.00027671,7]
[357402028,1744044649602,-500.0,0.00027671,7]
[357402029,1744044649611,-500.0,0.00027671,7]
[357402030,1744044649621,-500.0,0.00027671,7]
[357402031,1744044649634,-500.0,0.00027671,7]
[357402032,1744044649645,-500.0,0.00027671,7]
[357402033,1744044649655,-1521.9,0.00027671,7]
[357402034,1744044649666,-500.0,0.00027671,7]
[357402035,1744044649678,-500.0,0.00027671,7]
[357402036,1744044649687,-1079.88,0.00027671,7]
[357402037,1744044649697,-212.36355663,0.00027671,7]
[357402038,1744044649707,-1523.56,0.00027671,7]
[357402039,1744044649719,-1038.71,0.00027671,7]
[357402040,1744044649729,-381.888894,0.00027671,7]
[357402041,1744044649739,-500.0,0.00027671,7]
[357402042,1744044649748,-664.61,0.00027671,7]
[357402043,1744044649757,-500.0,0.00027671,7]
[357402044,1744044649767,-931.97,0.00027671,7]
[357402045,1744044649776,-873.21,0.00027671,7]
[357402046,1744044649786,-381.888894,0.00027671,7]
[357402047,1744044649796,-151.0,0.00027671,7]
[357402048,1744044649806,-500.0,0.00027671,7]
[357402049,1744044649816,-500.0,0.00027671,7]
[357402050,1744044649826,-504.10274257,0.00027671,7]
[357402051,1744044649836,-803.19,0.00027671,7]
[357402053,1744044649846,-500.0,0.00027671,7]
[357402054,1744044649856,-500.0,0.00027671,7]
[357402055,1744044649865,-500.0,0.00027671,7]
[357402056,1744044649875,-151.0,0.00027671,7]
[357402057,1744044649885,-655.49,0.00027671,7]
[357402058,1744044649894,-151.0,0.00027671,7]
[357402059,1744044649903,-529.02,0.00027671,7]
[357402060,1744044649913,-500.0,0.00027671,7]
[357402061,1744044649922,-1076.68,0.00027671,7]
[357402062,1744044649931,-741.14,0.00027671,7]
[357402063,1744044649940,-500.0,0.00027671,7]
[357402064,1744044649950,-165.7194628,0.00027671,7]
[357402065,1744044649959,-283.040412,0.00027671,7]
[357402066,1744044649969,-3192.88,0.00027671,7]
[357402067,1744044649978,-843.43,0.00027671,7]
[357402068,1744044649987,-500.0,0.00027671,7]
[357402069,1744044649997,-560.74,0.00027671,7]
[357402070,1744044650007,-500.0,0.00027671,7]
[357402071,1744044650016,-618.49442914,0.00027671,7]
[357402072,1744044650356,-403.19028049,0.00027397,7]
[357402073,1744044650369,-96.80971951,0.00027397,7]
[357402074,1744044650381,-9.93557086,0.00027671,7]
[357402075,1744044650390,-503.93,0.00027671,7]
[357402076,1744044650400,-566.32,0.00027671,7]
[357402077,1744044650409,-500.0,0.00027671,3]
[357402078,1744044650419,-1607.4,0.00027671,7]
[357402079,1744044650428,-1083.49781514,0.00027671,7]
[357402080,1744044650446,-1538.0126962,0.00027671,7]
[357402081,1744044650796,-800.58948866,0.00027671,7]
[357402082,1744044650806,-500.0,0.00027671,7]
[357402083,1744044650815,-267.81940238,0.00027671,7]
[357402084,1744044650827,-232.18059762,0.00027671,7]
[357402085,1744044650836,-500.0,0.00027671,7]
[357402086,1744044650845,-500.0,0.00027671,7]
[357402087,1744044650855,-500.0,0.00027671,7]
[357402088,1744044650864,-267.81940238,0.00027671,7]
[357402089,1744044650876,-2282.92059762,0.00027671,7]
[357402090,1744044650888,-500.0,0.00027671,7]
[357402091,1744044650897,-759.95,0.00027671,7]
[357402092,1744044650907,-10731.93,0.00027671,7]
[357402093,1744044650917,-500.0,0.00027671,7]
[357402094,1744044650927,-4508.38,0.00027671,7]
[357402095,1744044650943,-500.0,0.00027671,7]
[357402096,1744044650956,-500.0,0.00027671,7]
[357402097,1744044650966,-500.0,0.00027671,7]
[357402098,1744044650975,-535.49,0.00027671,7]
[357402099,1744044650985,-500.0,0.00027671,7]
[357402100,1744044650995,-2414.72,0.00027671,7]
[357402101,1744044651005,-603.92,0.00027671,7]
[357402102,1744044651015,-500.0,0.00027671,7]
[357402103,1744044651025,-500.0,0.00027671,7]
[357402104,1744044651040,-1441.86,0.00027671,7]
[357402105,1744044651051,-500.0,0.00027671,7]
[357402106,1744044651061,-500.0,0.00027671,7]
[357402107,1744044651071,-500.0,0.00027671,7]
[357402108,1744044651080,-500.0,0.00027671,7]
[357402109,1744044651089,-500.0,0.00027671,7]
[357402110,1744044651099,-500.0,0.00027671,7]
[357402111,1744044651109,-389.95130152,0.00027671,7]
[357402112,1744044651118,-500.0,0.00027671,7]
[357402113,1744044651130,-500.0,0.00027671,7]
[357402114,1744044651139,-1357.69,0.00027671,7]
[357402115,1744044651148,-800.65,0.00027671,7]
[357402116,1744044651161,-500.0,0.00027671,7]
[357402117,1744044651171,-500.0,0.00027671,7]
[357402118,1744044651180,-2393.3,0.00027671,7]
[357402119,1744044651189,-500.0,0.00027671,7]
[357402120,1744044651199,-3166.3,0.00027671,7]
[357402121,1744044651208,-500.0,0.00027671,7]
[357402122,1744044651218,-211.622502,0.00027671,7]
[357402123,1744044651227,-500.0,0.00027671,7]
[357402124,1744044651237,-500.0,0.00027671,7]
[357402125,1744044651247,-211.622502,0.00027671,7]
[357402126,1744044651257,-500.0,0.00027671,7]
[357402127,1744044651266,-1903.23,0.00027671,7]
[357402128,1744044651276,-502.82,0.00027671,7]
[357402129,1744044651286,-500.0,0.00027671,7]
[357402130,1744044651296,-151.0,0.00027671,7]
[357402131,1744044651306,-500.0,0.00027671,7]
[357402132,1744044651316,-548.98,0.00027671,7]
[357402133,1744044651326,-500.0,0.00027671,7]
[357402134,1744044651335,-719.2,0.00027671,7]
[357402135,1744044651344,-547.0,0.00027671,7]
[357402136,1744044651353,-951.42,0.00027671,7]
[357402137,1744044651363,-500.0,0.00027671,7]
[357402138,1744044651373,-747.31,0.00027671,7]